fUSD/lending_fUSD_20260121
["ID","MTS","AMOUNT","RATE_DAILY","PERIOD"]
[402936960,1768998639981,-2000.0,0.00016733,2]
[402936961,1768998639990,-1000.0,0.00016733,2]
[402936962,1768998640000,-2000.0,0.00016733,2]
[402936964,1768998640009,-1000.0,0.00016733,2]
[402936966,1768998640018,-2000.0,0.00016733,2]
[402936968,1768998640027,-1000.0,0.00016733,2]
[402936970,1768998640038,-250.0,0.00016733,2]
[402936972,1768998640047,-2000.0,0.00016733,2]
[402936974,1768998640056,-1000.0,0.00016733,2]
[402936976,1768998640065,-250.0,0.00016733,2]
[402936978,1768998640074,-2000.0,0.00016733,2]
[402936980,1768998640083,-500.0,0.00016733,2]
[402936982,1768998640094,-151.0,0.00016733,2]
[402936985,1768998640103,-226.36924572,0.00016733,2]
[402936988,1768998640114,-2000.0,0.00016733,2]
[402936991,1768998640127,-151.0,0.00016733,2]
[402936995,1768998640136,-2000.0,0.00016733,2]
[402936998,1768998640146,-2000.0,0.00016733,2]
[402937001,1768998640156,-151.0,0.00016733,2]
[402937004,1768998640165,-151.0,0.00016733,2]
[402937007,1768998640175,-2000.0,0.00016733,2]
[402937010,1768998640184,-151.0,0.00016733,2]
[402937012,1768998640193,-2000.0,0.00016733,2]
[402937014,1768998640203,-151.0,0.00016733,2]
[402937016,1768998640212,-151.0,0.00016733,2]
[402937018,1768998640222,-151.0,0.00016733,2]
[402937020,1768998640231,-151.0,0.00016733,2]
[402937022,1768998640241,-151.0,0.00016733,2]
[402937024,1768998640250,-151.0,0.00016733,2]
[402937026,1768998640259,-151.0,0.00016733,2]
[402937028,1768998640268,-151.0,0.00016733,2]
[402937030,1768998640277,-425.5,0.00016745,2]
[402937032,1768998640286,-589.0,0.00016747,2]
[402937034,1768998640294,-500.0,0.00016747,2]
[402937036,1768998640303,-500.0,0.00016747,2]
[402937038,1768998640312,-500.0,0.00016747,2]
[402937040,1768998640321,-500.0,0.00016747,2]
[402937042,1768998640330,-500.0,0.00016752,2]
[402937044,1768998640340,-660.0,0.00016758,2]
[402937046,1768998640348,-342.98,0.00016767,2]
[402937048,1768998640357,-500.0,0.00016773,2]
[402937050,1768998640367,-500.0,0.00016773,2]
[402937052,1768998640378,-500.0,0.00016773,2]
[402937054,1768998640387,-500.0,0.00016773,2]
[402937056,1768998640397,-500.0,0.00016773,2]
[402937058,1768998640406,-500.0,0.00016773,2]
[402937060,1768998640415,-403.28870191,0.00016773,2]
[402937062,1768998640424,-500.0,0.00016773,2]
[402937064,1768998640433,-500.0,0.00016773,2]
[402937066,1768998640443,-500.0,0.00016773,2]
[402937068,1768998640452,-336.16412022,0.00016773,2]
[402937070,1768998640461,-500.0,0.00016773,2]
[402937072,1768998640470,-274.67644424,0.00016773,2]
[402937074,1768998640479,-500.0,0.00016773,2]
[402937076,1768998640487,-500.0,0.00016773,2]
[402937078,1768998640496,-500.0,0.00016773,2]
[402937080,1768998640508,-425.5,0.00016788,2]
[402937082,1768998640517,-704.0,0.00016791,2]
[402937084,1768998640526,-13828.08696596,0.00016798,2]
[402937086,1768998640536,-868.78,0.00016801,2]
[402937089,1768998640545,-500.0,0.00016801,2]
[402937090,1768998640554,-500.0,0.00016801,2]
[402937093,1768998640563,-500.00000017,0.00016801,2]
[402937095,1768998640572,-500.0,0.00016801,2]
[402937096,1768998640583,-1789.0,0.00016825,2]
[402937098,1768998640594,-425.5,0.00016832,2]
[402937101,1768998640603,-8314.06650303,0.00016855,2]
[402937103,1768998640613,-500.0,0.00016856,2]
[402937104,1768998640625,-500.0,0.00016856,2]
[402937106,1768998640634,-472.0,0.00016858,2]
[402937108,1768998640643,-1313.0,0.00016861,2]
[402937110,1768998640652,-425.5,0.00016876,2]
[402937113,1768998640664,-1052.0,0.00016891,2]
[402937115,1768998640672,-500.0,0.00016911,2]
[402937117,1768998640681,-500.0,0.00016911,2]
[402937119,1768998640690,-425.5,0.0001692,2]
[402937121,1768998640699,-1313.0,0.00016923,2]
[402937124,1768998640717,-726.0,0.00016925,2]
[402937126,1768998640731,-13828.08696596,0.00016958,2]
[402937128,1768998640742,-982.0,0.00016958,2]
[402937131,1768998640754,-425.5,0.00016964,2]
[402937133,1768998640765,-500.0,0.00016966,2]
[402937135,1768998640776,-500.0,0.00016966,2]
[402937138,1768998640786,-746.0,0.00016991,2]
[402937140,1768998640798,-250.0,0.00017,2]
[402937142,1768998640809,-8314.06650303,0.00017005,2]
[402937145,1768998640819,-425.5,0.00017008,2]
[402937147,1768998640830,-500.0,0.00017021,2]
[402937149,1768998640840,-500.0,0.00017021,2]
[402937151,1768998640850,-262.0,0.00017024,2]
[402937153,1768998640860,-309.42998015,0.00017026,2]
[402937155,1768998640870,-206.23,0.00017028,2]
[402937158,1768998640884,-166.76,0.00017037,2]
[402937160,1768998640893,-1313.0,0.00017045,2]
[402937162,1768998640904,-425.5,0.00017051,2]
[402937164,1768998640915,-216.0,0.00017058,2]
[402937166,1768998640925,-1313.0,0.00017067,2]
[402937168,1768998640935,-503.40807885,0.00017069,2]
[402937170,1768998640946,-868.78,0.00017075,2]
[402937172,1768998640956,-500.0,0.00017075,2]
[402937175,1768998640966,-500.0,0.00017075,2]
[402937177,1768998640976,-975.0,0.00017091,2]
[402937179,1768998640986,-425.5,0.00017095,2]
[402937181,1768998640997,-13828.08696596,0.00017117,2]
[402937183,1768998641007,-500.0,0.0001713,2]
[402937185,1768998641018,-510.00080963,0.0001713,2]
[402937188,1768998641030,-425.5,0.00017139,2]
[402937190,1768998641041,-8314.06650303,0.00017154,2]
[402937192,1768998641052,-425.5,0.00017183,2]
[402937194,1768998641062,-500.0,0.00017185,2]
[402937196,1768998641073,-425.5,0.00017227,2]
[402937198,1768998641083,-500.0,0.0001724,2]
[402937201,1768998641094,-1313.0,0.0001726,2]
[402937203,1768998641104,-425.5,0.00017271,2]
[402937205,1768998641117,-13828.08696596,0.00017277,2]
[402937207,1768998641127,-151.0,0.00017281,2]
[402937209,1768998641136,-168.0,0.00017295,2]
[402937211,1768998641147,-8314.06650303,0.00017303,2]
[402937213,1768998641157,-1313.0,0.00017312,2]
[402937215,1768998641167,-425.5,0.00017314,2]
[402937218,1768998641177,-2134.64437014,0.00017318,2]
[402937220,1768998641187,-500.0,0.0001732,2]
[402937222,1768998641196,-581.80673396,0.00017321,2]
[402937224,1768998641205,-500.0,0.00017321,2]
[402937226,1768998641215,-1000.0,0.00017321,2]
[402937228,1768998641226,-1000.0,0.00017321,2]
[402937230,1768998641235,-500.0,0.00017321,2]
[402937232,1768998641245,-805.82815613,0.00017321,2]
[402937235,1768998641260,-500.0,0.00017321,2]
[402937237,1768998641270,-1000.0,0.00017321,2]
[402937239,1768998641280,-1000.0,0.00017321,2]
[402937241,1768998641290,-1000.0,0.00017321,2]
[402937243,1768998641300,-5888.0,0.00017321,2]
[402937245,1768998641310,-868.78,0.00017349,2]
[402937247,1768998641320,-425.5,0.00017358,2]
[402937250,1768998641329,-425.5,0.00017402,2]
[402937252,1768998641340,-13828.08696596,0.00017436,2]
[402937254,1768998641349,-4426.0,0.00017445,2]
[402937256,1768998641359,-425.5,0.00017446,2]
[402937258,1768998641370,-425.5,0.0001749,2]
[402937260,1768998641380,-23266.27927483,0.000175,2]
[402937262,1768998641391,-1778.26926384,0.000175,3]
[402937265,1768998641402,-1000.0,0.00017545,2]
[402937267,1768998641412,-852.0,0.00017547,2]
[402937269,1768998641422,-13828.08696596,0.00017596,2]
[402937271,1768998641432,-868.78,0.00017623,2]
[402937273,1768998641443,-7622.11249316,0.0001764,2]
[402937275,1768998641454,-150.01304085,0.00017686,2]
[402937278,1768998641465,-1000.0,0.000177,2]
[402937280,1768998641476,-13828.08696596,0.00017755,2]
[402937282,1768998641486,-11474.41122024,0.00017759,2]
[402937284,1768998641497,-150.0,0.00017796,2]
[402937286,1768998641507,-500.0,0.00017796,2]
[402937288,1768998641517,-500.0,0.00017796,2]
[402937291,1768998641527,-150.0,0.00017796,2]
[402937293,1768998641537,-150.65315728,0.00017796,2]
[402937295,1768998641548,-150.0,0.00017796,2]
[402937297,1768998641559,-150.0,0.00017796,2]
[402937299,1768998641571,-151.07703537,0.00017796,2]
[402937301,1768998641581,-1000.0,0.000178,2]
[402937304,1768998641595,-5633.36026617,0.00017818,2]
[402937306,1768998641606,-9937.91525305,0.00017818,2]
[402937308,1768998641617,-500.0,0.00017829,2]
[402937310,1768998641631,-544.59749833,0.00017829,2]
[402937312,1768998641641,-500.0,0.00017829,2]
[402937314,1768998641652,-151.0,0.00017829,2]
[402937317,1768998641665,-127009.25320044,0.0001783,2]
[402937319,1768998641676,-161.25613076,0.00017851,2]
[402937321,1768998641687,-500.0,0.00017851,2]
[402937323,1768998641698,-500.0,0.00017851,2]
[402937325,1768998641709,-150.0,0.00017851,2]
[402937327,1768998641719,-150.0,0.00017851,2]
[402937330,1768998641730,-150.0,0.00017851,2]
[402937332,1768998641741,-1500.0,0.00017868,2]
[402937334,1768998641752,-438.72320823,0.00017868,2]
[402937336,1768998641762,-1508.88161268,0.00017868,2]
[402937338,1768998641773,-1500.0,0.00017868,2]
[402937340,1768998641783,-868.78,0.00017897,2]
[402937342,1768998641794,-7644.42124384,0.000179,3]
[402937345,1768998641804,-10000.0,0.000179,2]
[402937347,1768998641819,-1000.0,0.000179,2]
[402937350,1768998641833,-862.39790705,0.000179,2]
[402937351,1768998641846,-1737.15816597,0.000179,2]
[402937352,1768998641857,-250.00005406,0.000179,2]
[402937353,1768998641868,-500.0,0.000179,2]
[402937354,1768998641879,-500.0,0.000179,2]
[402937355,1768998641889,-500.0,0.000179,2]
[402937356,1768998641900,-500.0,0.000179,2]
[402937357,1768998641911,-500.0,0.000179,2]
[402937358,1768998641921,-500.0,0.000179,2]
[402937359,1768998641931,-500.0,0.000179,2]
[402937360,1768998641941,-500.0,0.000179,2]
[402937361,1768998641952,-500.0,0.000179,2]
[402937362,1768998641962,-500.0,0.000179,2]
[402937363,1768998641971,-500.0,0.000179,2]
[402937365,1768998641980,-500.0,0.000179,2]
[402937367,1768998641990,-500.0,0.000179,2]
[402937369,1768998641999,-500.0,0.000179,2]
[402937371,1768998642009,-500.0,0.000179,2]
[402937373,1768998642018,-500.0,0.000179,2]
[402937376,1768998642028,-500.0,0.000179,2]
[402937378,1768998642039,-500.0,0.000179,2]
[402937380,1768998642048,-500.0,0.000179,2]
[402937382,1768998642058,-500.0,0.000179,2]
[402937384,1768998642068,-500.0,0.000179,2]
[402937386,1768998642079,-500.0,0.000179,2]
[402937388,1768998642089,-500.0,0.000179,2]
[402937391,1768998642101,-500.0,0.000179,2]
[402937393,1768998642111,-500.0,0.000179,2]
[402937395,1768998642123,-500.0,0.000179,2]
[402937397,1768998642132,-500.0,0.000179,2]
[402937399,1768998642143,-500.0,0.000179,2]
[402937401,1768998642153,-500.0,0.000179,2]
[402937403,1768998642162,-500.0,0.000179,2]
[402937406,1768998642172,-11408.0,0.000179,2]
[402937408,1768998642182,-500.0,0.00017906,2]
[402937410,1768998642191,-500.0,0.00017906,2]
[402937412,1768998642201,-150.0,0.00017906,2]
[402937414,1768998642210,-150.0,0.00017906,2]
[402937416,1768998642220,-221.17629805,0.00017906,2]
[402937418,1768998642231,-13828.08696596,0.00017915,2]
[402937420,1768998642241,-420.0,0.00017941,2]
[402937422,1768998642252,-326.0,0.00017941,2]
[402937424,1768998642262,-500.0,0.0001796,2]
[402937427,1768998642272,-500.0,0.0001796,2]
[402937429,1768998642284,-155.03086821,0.0001796,2]
[402937431,1768998642294,-150.0,0.0001796,2]
[402937433,1768998642306,-1000.0,0.0001797,2]
[402937435,1768998642316,-500.0,0.0001797,2]
[402937438,1768998642327,-1000.0,0.0001797,2]
[402937440,1768998642336,-694.631145,0.0001797,2]
[402937442,1768998642347,-1321.57411122,0.0001797,2]
[402937445,1768998642364,-500.0,0.00017972,2]
[402937447,1768998642377,-15055.0,0.00017973,2]
[402937449,1768998642387,-30553.0,0.00017973,2]
[402937451,1768998642397,-500.79549494,0.00017973,2]
[402937453,1768998642407,-150.0,0.00017973,2]
[402937455,1768998642417,-500.12560695,0.00017973,2]
[402937458,1768998642429,-500.0,0.00017973,2]
[402937460,1768998642439,-500.0,0.00017973,2]
[402937462,1768998642450,-500.0,0.00017973,2]
[402937464,1768998642460,-500.0,0.00017973,2]
[402937466,1768998642470,-257.99612183,0.00017973,2]
[402937468,1768998642480,-500.0,0.00017973,2]
[402937470,1768998642491,-550.70733566,0.00017973,2]
[402937473,1768998642501,-500.0,0.00017973,2]
[402937475,1768998642511,-159.96427776,0.00017973,2]
[402937477,1768998642522,-500.15189466,0.00017973,2]
[402937479,1768998642532,-586.66357325,0.00017973,2]
[402937481,1768998642542,-500.0,0.00017973,2]
[402937483,1768998642552,-500.0,0.00017973,2]
[402937485,1768998642563,-500.0,0.00017973,2]
[402937488,1768998642572,-500.0,0.00017973,2]
[402937490,1768998642583,-500.0,0.00017973,2]
[402937492,1768998642597,-166.76,0.00017975,2]
[402937494,1768998642608,-500.0,0.00017982,2]
[402937496,1768998642618,-614.97964183,0.00017989,2]
[402937498,1768998642630,-500.0,0.00017989,2]
[402937501,1768998642641,-522.15312701,0.0001799,2]
[402937503,1768998642652,-522.15312701,0.0001799,2]
[402937505,1768998642663,-522.15312701,0.0001799,2]
[402937507,1768998642673,-151.0,0.00017997,2]
[402937509,1768998642684,-150.0,0.00017999,2]
[402937511,1768998642695,-150.0,0.00017999,2]
[402937513,1768998642704,-150.0,0.00017999,2]
[402937515,1768998642714,-284.69021713,0.00017999,2]
[402937518,1768998642725,-1086.0844155,0.00017999,5]
[402937520,1768998642735,-155.0,0.00017999,2]
[402937522,1768998642746,-1008.3455,0.00017999,2]
[402937524,1768998642756,-300.0,0.00017999,2]
[402937526,1768998642766,-666.0,0.00017999,2]
[402937528,1768998642777,-500.0,0.00017999,2]
[402937531,1768998642787,-300.0,0.00017999,2]
[402937532,1768998642798,-500.0,0.00017999,2]
[402937534,1768998642809,-500.0,0.00017999,2]
[402937536,1768998642820,-500.0,0.00017999,2]
[402937537,1768998642831,-500.0,0.00017999,2]
[402937539,1768998642842,-500.0,0.00017999,2]
[402937540,1768998642852,-500.0,0.00017999,2]
[402937542,1768998642862,-500.0,0.00017999,2]
[402937543,1768998642872,-500.0,0.00017999,2]
[402937545,1768998642882,-500.0,0.00017999,2]
[402937547,1768998642892,-217.3954449,0.00017999,2]
[402937549,1768998642902,-512.94511846,0.00017999,2]
[402937552,1768998642912,-248.64134578,0.00017999,2]
[402937554,1768998642922,-500.0,0.00017999,2]
[402937557,1768998642932,-500.0,0.00017999,2]
[402937560,1768998642942,-608.86475183,0.00017999,2]
[402937563,1768998642952,-500.0,0.00017999,2]
[402937566,1768998642962,-500.0,0.00017999,2]
[402937567,1768998642972,-500.0,0.00017999,2]
[402937569,1768998642982,-500.0,0.00017999,2]
[402937570,1768998642992,-230.71432218,0.00017999,2]
[402937572,1768998643002,-500.0,0.00017999,2]
[402937574,1768998643012,-473.60264297,0.00017999,2]
[402937576,1768998643023,-1457332.98868302,0.00018,2]
[402937577,1768998643033,-361485.47079506,0.00018,2]
[402937579,1768998643047,-400.0,0.00018,2]
[402937581,1768998643058,-143717.9738593,0.00018,2]
[402937584,1768998643068,-253.00504588,0.00018,2]
[402937585,1768998643078,-237181.4266049,0.00018,2]
[402937587,1768998643088,-4941.6096705,0.00018,2]
[402937589,1768998643098,-41331.5271915,0.00018,2]
[402937591,1768998643107,-1045280.8727035,0.00018,2]
[402937605,1768998643298,-358.3738,0.00018,2]
[402937612,1768998643386,-7095667.3390124,0.00018,2]
[402937614,1768998643398,-534.0,0.00018,2]
[402937615,1768998643410,-2280.9972858,0.00018,2]
[402937617,1768998643421,-1956.161805,0.00018,2]
[402937619,1768998643432,-21041.45799257,0.00018,2]
[402937621,1768998643444,-4348.12435315,0.00018,2]
[402937623,1768998643456,-570.39513047,0.00018,2]
[402937625,1768998643471,-7089.32551755,0.00018,2]
[402937626,1768998643483,-244787.71621439,0.00018,2]
[402937628,1768998643494,-172625.02685951,0.00018,2]
[402937630,1768998643505,-866.75245244,0.00018,2]
[402937632,1768998643517,-422.28753396,0.00018,2]
[402937634,1768998643529,-653.76080498,0.00018,2]
[402937676,1768998644076,-560.5908,0.00017452,2]
[402937678,1768998644091,-1361.07983159,0.00017452,2]
[402937884,1768998646115,-484.0252033,0.00017452,2]
[402937886,1768998646127,-2301.83964,0.00017452,2]
[402937888,1768998646138,-3317.35031818,0.00017452,2]
[402937893,1768998646172,-289.18070996,0.00017452,2]
[402937895,1768998646181,-685.28053946,0.00017602,2]
[402937992,1768998647243,-7628.78596357,0.00017602,2]
[402937994,1768998647253,-10082.21403643,0.00018,2]
[402937997,1768998647268,-258.0738374,0.00018,2]
[402937999,1768998647279,-366.5073679,0.00018,2]
[402938575,1768998665346,500.0,0.00016363,2]
[402938576,1768998665424,153.53248348,0.00016363,2]
[402938577,1768998665841,150.0,0.00016363,2]
[402938578,1768998667969,3553.211,0.00016379,2]
[402938579,1768998720196,166.66,0.00015779,2]
[402938580,1768998720385,166.66,0.00016111,2]
[402938581,1768998723223,1146.9604,0.00016379,2]
[402938582,1768998736226,916.76607339,0.000177,30]
[402938584,1768998776076,10000.01,0.00016331,2]
[402938585,1768998776100,10000.01,0.00016331,2]
[402938586,1768998776123,10000.01,0.00016331,2]
[402938587,1768998776147,10000.01,0.00016331,2]
[402938588,1768998776170,10000.01,0.00016331,2]
[402938589,1768998776193,10000.01,0.00016331,2]
[402938590,1768998776217,10000.01,0.00016331,2]
[402938591,1768998776241,10000.01,0.00016331,2]
[402938592,1768998776268,10000.01,0.00016331,2]
[402938593,1768998776292,10000.01,0.00016331,2]
[402938594,1768998776315,10000.01,0.00016331,2]
[402938595,1768998776338,10000.01,0.00016331,2]
[402938596,1768998776361,879999.88,0.00016331,2]
[402938597,1768998796866,559.6103,0.00016379,2]
[402938598,1768998806741,520.11,0.000164,2]
[402938600,1768998903022,500.0,0.00016318,2]
[402938604,1768999000728,500.0,0.00015971,2]
[402938606,1768999059273,553.43,0.00015918,2]
[402938607,1768999076347,208.19814596,0.00016373,2]
[402938608,1768999111011,3240.0,0.00015772,2]
[402938609,1768999207474,381.68,0.00013029,2]
[402938610,1768999303926,6170.13185404,0.00015738,2]
[402938611,1768999303950,10000.01,0.00015738,2]
[402938612,1768999303976,10000.01,0.00015738,2]
[402938613,1768999303997,10000.01,0.00015738,2]
[402938614,1768999304019,10000.01,0.00015738,2]
[402938615,1768999304040,6931.35814596,0.00015738,2]
[402938616,1768999380133,159.63,0.00015874,2]
[402938617,1768999512000,1003.0817,0.000164,2]
[402938618,1768999555038,152.56,0.00015705,2]
[402938619,1768999557579,995.28,0.00015874,2]
[402938620,1768999594074,150.0,0.0001573,2]
[402938621,1768999622146,164.39,0.00012591,2]
[402938627,1768999776083,1649.83714662,0.00016269,2]
[402938628,1768999817645,1003.08171,0.0001634,2]
[402938631,1768999832153,-195.0,0.00016418,2]
[402938632,1768999832163,-328.54068909,0.00016418,2]
[402938633,1768999832174,-22.97113689,0.00016418,2]
[402938634,1768999832186,-277.02886311,0.00016418,2]
[402938635,1768999832195,-207.98267208,0.00016418,2]
[402938636,1768999832206,-102.76506156,0.00016418,2]
[402938637,1768999832217,-200.0,0.00016426,2]
[402938638,1768999832226,-1003.08171,0.0001644,2]
[402938639,1768999832236,-300.0,0.00016441,2]
[402938640,1768999832245,-181.54,0.00016443,2]
[402938641,1768999832254,-166.66,0.00016443,2]
[402938642,1768999832264,-1118.35,0.00016499,2]
[402938643,1768999832273,-553.43,0.00016515,2]
[402938644,1768999832283,-300.0,0.00016519,2]
[402938645,1768999832293,-1152.01712828,0.00016519,2]
[402938646,1768999832304,-20.98287172,0.00016519,2]
[402938647,1768999832314,-300.0,0.00016519,2]
[402938648,1768999832323,-1200.0,0.00016519,2]
[402938649,1768999832333,-300.0,0.00016519,2]
[402938650,1768999832342,-500.0,0.0001652,2]
[402938651,1768999832351,-200.0,0.0001652,2]
[402938652,1768999832360,-151.0,0.0001652,2]
[402938653,1768999832369,-151.0,0.0001652,2]
[402938654,1768999832643,-55.70986802,0.0001652,2]
[402938659,1768999832679,-95.29013198,0.0001652,2]
[402938661,1768999832689,-151.0,0.0001652,2]
[402938663,1768999832698,-46.97676802,0.0001652,2]
[402938665,1768999832710,-104.02323198,0.0001652,2]
[402938667,1768999832719,-289.30659085,0.0001652,2]
[402938668,1768999832729,-550.0,0.00016529,2]
[402938669,1768999832738,-500.0,0.0001653,2]
[402938670,1768999832747,-500.0,0.0001653,2]
[402938671,1768999832757,-504.28373524,0.0001653,2]
[402938672,1768999832766,-500.0,0.0001653,2]
[402938673,1768999832776,-500.0,0.0001653,2]
[402938674,1768999832787,-500.0,0.0001653,2]
[402938675,1768999832796,-500.0,0.0001653,2]
[402938676,1768999832805,-500.0,0.0001653,2]
[402938677,1768999832816,-500.0,0.0001653,2]
[402938678,1768999832825,-588.62582996,0.0001653,2]
[402938679,1768999832834,-614.97964183,0.0001653,2]
[402938680,1768999832843,-1003.08171,0.0001654,2]
[402938681,1768999832852,-150.00024902,0.0001658,2]
[402938682,1768999832862,-1000.0,0.00016633,2]
[402938683,1768999832871,-1003.08171,0.0001664,2]
[402938684,1768999832880,-1397.31,0.00016658,2]
[402938685,1768999832890,-995.28,0.00016667,2]
[402938686,1768999832899,-500.0,0.00016733,2]
[402938687,1768999832909,-1003.08171,0.0001674,2]
[402938688,1768999832920,-836.0,0.00016752,2]
[402938689,1768999832930,-4353.9463329,0.00016769,2]
[402938690,1768999832939,-7680.87742099,0.00016769,2]
[402938691,1768999832949,-11490.13325869,0.00016769,2]
[402938692,1768999832959,-15546.5541,0.00016769,2]
[402938693,1768999832968,-743.0598,0.0001677,2]
[402938694,1768999832977,-2175.25280854,0.00016771,2]
[402938695,1768999832986,-500.0,0.00016772,2]
[402938696,1768999832996,-500.0,0.00016772,2]
[402938697,1768999833006,-500.0,0.00016772,2]
[402938698,1768999833016,-500.0,0.00016772,2]
[402938699,1768999833025,-500.0,0.00016772,2]
[402938700,1768999833035,-500.0,0.00016772,2]
[402938701,1768999833044,-500.0,0.00016772,2]
[402938702,1768999833054,-500.0,0.00016772,2]
[402938703,1768999833063,-500.0,0.00016772,2]
[402938704,1768999833072,-500.0,0.00016772,2]
[402938705,1768999833082,-500.0,0.00016772,2]
[402938706,1768999833091,-174.17668876,0.00016772,2]
[402938707,1768999833100,-500.0,0.00016772,2]
[402938708,1768999833109,-500.0,0.00016772,2]
[402938709,1768999833119,-500.0,0.00016772,2]
[402938710,1768999833128,-500.0,0.00016772,2]
[402938711,1768999833137,-500.0,0.00016772,2]
[402938712,1768999833147,-500.0,0.00016772,2]
[402938713,1768999833156,-500.0,0.00016772,2]
[402938714,1768999833166,-500.0,0.00016772,2]
[402938715,1768999833176,-500.0,0.00016772,2]
[402938716,1768999833185,-500.0,0.00016772,2]
[402938717,1768999833194,-500.0,0.00016772,2]
[402938718,1768999833204,-500.0,0.00016772,2]
[402938719,1768999833213,-500.0,0.00016772,2]
[402938720,1768999833222,-500.0,0.00016772,2]
[402938721,1768999833231,-500.0,0.00016772,2]
[402938722,1768999833240,-500.0,0.00016772,2]
[402938723,1768999833249,-500.0,0.00016772,2]
[402938724,1768999833258,-500.0,0.00016772,2]
[402938725,1768999833267,-500.0,0.00016772,2]
[402938726,1768999833276,-500.0,0.00016772,2]
[402938727,1768999833285,-500.0,0.00016772,2]
[402938728,1768999833295,-500.0,0.00016772,2]
[402938729,1768999833304,-500.0,0.00016772,2]
[402938730,1768999833314,-500.0,0.00016772,2]
[402938731,1768999833323,-500.0,0.00016772,2]
[402938732,1768999833333,-500.0,0.00016772,2]
[402938733,1768999833344,-500.0,0.00016772,2]
[402938734,1768999833353,-500.0,0.00016772,2]
[402938735,1768999833363,-500.0,0.00016772,2]
[402938736,1768999833373,-500.0,0.00016772,2]
[402938737,1768999833383,-500.0,0.00016772,2]
[402938738,1768999833393,-500.0,0.00016772,2]
[402938739,1768999833405,-500.0,0.00016772,2]
[402938740,1768999833415,-500.0,0.00016772,2]
[402938741,1768999833425,-500.0,0.00016772,2]
[402938742,1768999833436,-500.0,0.00016772,2]
[402938743,1768999833446,-500.0,0.00016772,2]
[402938744,1768999833456,-500.0,0.00016772,2]
[402938745,1768999833466,-500.0,0.00016772,2]
[402938746,1768999833476,-500.0,0.00016772,2]
[402938747,1768999833486,-500.0,0.00016772,2]
[402938748,1768999833495,-500.0,0.00016772,2]
[402938749,1768999833505,-500.0,0.00016772,2]
[402938750,1768999833514,-500.0,0.00016772,2]
[402938751,1768999833524,-500.0,0.00016772,2]
[402938752,1768999833533,-500.0,0.00016772,2]
[402938753,1768999833543,-500.0,0.00016772,2]
[402938754,1768999833552,-500.0,0.00016772,2]
[402938755,1768999833564,-500.0,0.00016772,2]
[402938756,1768999833574,-500.0,0.00016772,2]
[402938757,1768999833583,-500.0,0.00016772,2]
[402938758,1768999833593,-500.0,0.00016772,2]
[402938759,1768999833610,-500.0,0.00016772,2]
[402938760,1768999833630,-500.0,0.00016772,2]
[402938761,1768999833646,-500.0,0.00016772,2]
[402938762,1768999833656,-500.0,0.00016772,2]
[402938763,1768999833665,-500.0,0.00016772,2]
[402938764,1768999833676,-500.0,0.00016772,2]
[402938765,1768999833685,-500.0,0.00016772,2]
[402938766,1768999833696,-483.36961825,0.00016772,2]